fUSD/lending_fUSD_20240927
["ID","MTS","AMOUNT","RATE_DAILY","PERIOD"]
[339256029,1727409038563,-234.8062249,0.000128,2]
[339256031,1727409038573,-234.8062249,0.000128,2]
[339256033,1727409038583,-234.8062249,0.000128,2]
[339256035,1727409038592,-234.8062249,0.000128,2]
[339256037,1727409038606,-235.3,0.000128,2]
[339256040,1727409038617,-237.19006048,0.000128,2]
[339256042,1727409038627,-237.19006048,0.000128,2]
[339256044,1727409038637,-237.19006048,0.000128,2]
[339256046,1727409038646,-237.19006048,0.000128,2]
[339256048,1727409038655,-237.19006048,0.000128,2]
[339256050,1727409038664,-237.19006048,0.000128,2]
[339256052,1727409038674,-237.19006048,0.000128,2]
[339256054,1727409038683,-237.19006048,0.000128,2]
[339256056,1727409038692,-237.19006048,0.000128,2]
[339256058,1727409038702,-237.19006048,0.000128,2]
[339256060,1727409038712,-237.19006048,0.000128,2]
[339256062,1727409038721,-237.19006048,0.000128,2]
[339256064,1727409038730,-237.19006048,0.000128,2]
[339256066,1727409038739,-237.19006048,0.000128,2]
[339256068,1727409038750,-237.19006048,0.000128,2]
[339256070,1727409038761,-237.19006048,0.000128,2]
[339256072,1727409038772,-237.19006048,0.000128,2]
[339256074,1727409038782,-237.19006048,0.000128,2]
[339256076,1727409038793,-237.19006048,0.000128,2]
[339256078,1727409038802,-237.69,0.000128,2]
[339256080,1727409038813,-434.581,0.00012867,2]
[339256082,1727409038823,-166.606,0.00012867,2]
[339256084,1727409038833,-385.68523347,0.00012871,2]
[339256086,1727409038843,-157.85,0.0001288,2]
[339256089,1727409038853,-1476.06750128,0.0001289,2]
[339256091,1727409038862,-14537.5023837,0.00012896,2]
[339256093,1727409038873,-2825.1980649,0.00012896,2]
[339256095,1727409038883,-655.060899,0.00012899,2]
[339256097,1727409038893,-958.79842344,0.00012899,2]
[339256099,1727409038903,-500.0,0.00012899,2]
[339256101,1727409038913,-2000.0,0.00012899,2]
[339256103,1727409038922,-148486.00812442,0.000129,2]
[339256106,1727409038940,-314.51665024,0.000129,2]
[339256109,1727409038963,-529.76522685,0.000129,2]
[339256111,1727409038974,-766.51726521,0.000129,2]
[339256113,1727409038987,-1190.31632735,0.000129,2]
[339256167,1727409039631,-2566.54677904,0.000129,2]
[339256169,1727409039643,-7659.00000018,0.000129,2]
[339256171,1727409039659,-1600.0,0.000129,2]
[339256174,1727409039671,-1323.36420658,0.000129,2]
[339256176,1727409039683,-619.29500002,0.000129,2]
[339256185,1727409039765,-289.2912643,0.000129,2]
[339256187,1727409039778,-149640.8253267,0.000129,2]
[339256189,1727409039787,-558.0,0.000129,2]
[339256191,1727409039797,-1903.0,0.000129,2]
[339256193,1727409039807,-554.0,0.000129,2]
[339256195,1727409039818,-1914.159,0.000129,2]
[339256197,1727409039828,-807.0,0.000129,2]
[339256199,1727409039838,-3354.111,0.000129,2]
[339256201,1727409039848,-150.0,0.000129,2]
[339256203,1727409039858,-229.876,0.000129,2]
[339256205,1727409039868,-262.713,0.000129,2]
[339256207,1727409039878,-43045.27366233,0.000129,2]
[339256209,1727409039890,-385.95255073,0.000129,2]
[339256211,1727409039901,-531.6655106,0.000129,2]
[339256214,1727409039915,-252.02583929,0.000129,2]
[339256509,1727409042940,-539.447999,0.000129,2]
[339256511,1727409042952,-564.74894883,0.000129,2]
[339256513,1727409042963,-1083.11461126,0.000129,2]
[339256516,1727409042974,-832.28687525,0.000129,2]
[339256518,1727409042986,-874.54195962,0.000129,2]
[339256520,1727409042999,-853.28999999,0.000129,2]
[339256528,1727409043074,-7707.73423594,0.000129,2]
[339256530,1727409043086,-1817.90499168,0.000129,2]
[339256532,1727409043097,-3215.98702103,0.000129,2]
[339256534,1727409043109,-549.999999,0.000129,2]
[339256535,1727409043124,-10582.75058417,0.000129,2]
[339256746,1727409045629,-958.79842344,0.00012899,2]
[339256748,1727409045639,-4001.71311373,0.000129,2]
[339256750,1727409045653,-7818.3596,0.000129,2]
[339256752,1727409045664,-417.47216,0.000129,2]
[339256761,1727409045740,-1225.48002,0.000129,2]
[339256763,1727409045752,-1698.87654714,0.000129,2]
[339256765,1727409045763,-2859.89930432,0.000129,2]
[339256767,1727409045774,-520.38152683,0.000129,2]
[339256769,1727409045785,-277.72958304,0.000129,2]
[339256771,1727409045796,-444.6191269,0.000129,2]
[339256773,1727409045807,-4703.51754509,0.000129,2]
[339256775,1727409045818,-366.96308939,0.000129,2]
[339256783,1727409045883,-12350.31781265,0.000129,2]
[339256785,1727409045895,-273.72011597,0.000129,2]
[339256787,1727409045906,-14739.47726079,0.000129,2]
[339256789,1727409045917,-3392.18267919,0.000129,2]
[339256791,1727409045928,-269627.43231104,0.000129,2]
[339256952,1727409047513,-3795.64476265,0.000129,2]
[339256954,1727409047524,-646262.64447601,0.000129,2]
[339256956,1727409047535,-1102.43613394,0.000129,2]
[339256958,1727409047546,-612.67,0.000129,2]
[339256960,1727409047557,-281.00881241,0.000129,2]
[339256963,1727409047575,-1858.57567749,0.000129,2]
[339257795,1727409068472,268.34,0.00010083,2]
[339257798,1727409112270,1050.0,0.00011,2]
[339257799,1727409122440,150.0,0.0001389,30]
[339257800,1727409135444,2952.778,0.00011064,2]
[339257801,1727409248142,595.19014215,0.00011064,2]
[339257814,1727409680320,150.0,0.0001389,30]
[339257815,1727409796464,254.92,9.918e-05,2]
[339257862,1727410137720,-150.0,0.00013,5]
[339257863,1727410137742,-10000.0,0.00013,5]
[339257879,1727410147148,-450.0,0.000128,4]
[339257892,1727410169764,277.41,0.00010959,2]
[339257893,1727410175215,-6400.0,0.00013,4]
[339257897,1727410231838,-501.18925235,0.00011164,2]
[339257898,1727410231849,-500.0,0.00011164,2]
[339257899,1727410231858,-250.0,0.00011827,2]
[339257900,1727410231868,-232.53,0.00011827,2]
[339257901,1727410231878,-250.0,0.00011831,2]
[339257902,1727410231888,-23890.0,0.00011834,2]
[339257903,1727410231897,-367.28,0.00011901,2]
[339257904,1727410231907,-299.13,0.00011961,2]
[339257905,1727410231918,-1000.0,0.00011962,2]
[339257906,1727410231927,-254.92,0.00012182,2]
[339257907,1727410231937,-468.24570304,0.00012255,2]
[339257908,1727410231948,-384.833,0.000127,2]
[339257909,1727410231957,-385.68523347,0.00012737,2]
[339257910,1727410231967,-771.1705,0.00012796,2]
[339257911,1727410231977,-3032.2513,0.00012796,2]
[339257912,1727410231987,-4865.3537,0.000128,2]
[339257913,1727410231996,-3803.5633,0.000128,2]
[339257914,1727410232006,-482.6852,0.000128,2]
[339257915,1727410232015,-3394.9026,0.000128,2]
[339257916,1727410232024,-450.0,0.000128,3]
[339257917,1727410232034,-5067.81512623,0.000128,2]
[339257918,1727410232043,-151.29346447,0.000128,2]
[339257919,1727410232052,-151.29346447,0.000128,2]
[339257921,1727410232061,-151.29346447,0.000128,2]
[339257923,1727410232071,-151.29346447,0.000128,2]
[339257925,1727410232080,-151.29346447,0.000128,2]
[339257927,1727410232089,-151.29346447,0.000128,2]
[339257929,1727410232099,-151.79,0.000128,2]
[339257930,1727410232108,-217.51830275,0.000128,2]
[339257932,1727410232117,-217.51830275,0.000128,2]
[339257934,1727410232126,-217.51830275,0.000128,2]
[339257936,1727410232136,-217.51830275,0.000128,2]
[339257938,1727410232145,-217.51830275,0.000128,2]
[339257940,1727410232154,-217.51830275,0.000128,2]
[339257942,1727410232163,-217.51830275,0.000128,2]
[339257944,1727410232172,-217.51830275,0.000128,2]
[339257946,1727410232181,-217.51830275,0.000128,2]
[339257947,1727410232190,-217.51830275,0.000128,2]
[339257949,1727410232199,-217.51830275,0.000128,2]
[339257950,1727410232208,-217.51830275,0.000128,2]
[339257951,1727410232217,-217.51830275,0.000128,2]
[339257952,1727410232226,-217.51830275,0.000128,2]
[339257953,1727410232235,-217.51830275,0.000128,2]
[339257954,1727410232245,-217.51830275,0.000128,2]
[339257955,1727410232253,-217.51830275,0.000128,2]
[339257956,1727410232262,-217.51830275,0.000128,2]
[339257957,1727410232271,-217.51830275,0.000128,2]
[339257959,1727410232280,-218.01,0.000128,2]
[339257960,1727410232289,-221.09055203,0.000128,2]
[339257961,1727410232298,-221.09055203,0.000128,2]
[339257962,1727410232308,-221.09055203,0.000128,2]
[339257963,1727410232319,-221.09055203,0.000128,2]
[339257964,1727410232329,-221.09055203,0.000128,2]
[339257965,1727410232339,-221.09055203,0.000128,2]
[339257966,1727410232349,-221.09055203,0.000128,2]
[339257967,1727410232359,-221.09055203,0.000128,2]
[339257968,1727410232369,-221.09055203,0.000128,2]
[339257969,1727410232380,-221.09055203,0.000128,2]
[339257970,1727410232389,-221.09055203,0.000128,2]
[339257971,1727410232398,-221.09055203,0.000128,2]
[339257972,1727410232407,-221.09055203,0.000128,2]
[339257973,1727410232418,-221.09055203,0.000128,2]
[339257974,1727410232427,-221.09055203,0.000128,2]
[339257975,1727410232437,-221.09055203,0.000128,2]
[339257976,1727410232446,-221.09055203,0.000128,2]
[339257977,1727410232456,-221.09055203,0.000128,2]
[339257978,1727410232465,-221.09055203,0.000128,2]
[339257979,1727410232474,-221.59,0.000128,2]
[339257980,1727410232484,-6875.17095421,0.000128,2]
[339257981,1727410232494,-389.423,0.0001286,2]
[339257982,1727410232503,-171.38349108,0.00012898,2]
[339257983,1727410232513,-190.17422917,0.00012899,2]
[339257984,1727410232523,-500.0,0.00012899,2]
[339257985,1727410232533,-416.42138562,0.00012899,2]
[339257986,1727410232543,-500.0,0.00012899,2]
[339257987,1727410232553,-2000.0,0.00012899,2]
[339257988,1727410232563,-73146.36736662,0.000129,2]
[339257989,1727410232581,-925.1775,0.000129,2]
[339257990,1727410232594,-5707.72835761,0.000129,2]
[339257991,1727410232605,-4598.71163883,0.000129,2]
[339257992,1727410232617,-65148.1700185,0.000129,2]
[339257996,1727410237857,-152115.99377439,0.000129,2]
[339257997,1727410237867,-26239.12996514,0.000129,2]
[339257998,1727410237963,-297.23411,0.000129,2]
[339257999,1727410238016,-782.53154917,0.000129,2]
[339258000,1727410238028,-276.73994888,0.000129,2]
[339258001,1727410238040,-82460.81576609,0.000129,2]
[339258002,1727410238070,-3538.42229142,0.000129,2]
[339258003,1727410238231,-31078.3263693,0.000129,2]
[339258004,1727410238240,-1421.0,0.000129,2]
[339258005,1727410238250,-448.0,0.000129,2]
[339258006,1727410238260,-809.0,0.000129,2]
[339258007,1727410238269,-1141752.7251494,0.000129,2]
[339258011,1727410239758,-5401986.4886717,0.000129,2]
[339258013,1727410240022,-4326.46176365,0.000129,2]
[339258014,1727410240034,-881.8313582,0.000129,2]
[339258015,1727410240047,-1637.47872,0.000129,2]
[339258136,1727410241457,150.0,0.00011107,2]
[339258209,1727410242954,-556496.81249193,0.000129,2]
[339258216,1727410243009,-311.155,0.000129,2]
[339258223,1727410243064,-21218.48941589,0.000129,2]
[339258402,1727410246192,-2081.88552,0.000129,2]
[339258403,1727410246205,-10385.78528842,0.000129,2]
[339258404,1727410246217,-1733.54210325,0.000129,2]
[339258410,1727410246437,-135855.10912334,0.000129,2]
[339258411,1727410246449,-1310.35914055,0.000129,2]
[339258413,1727410246460,-629.3152341,0.000129,2]
[339258415,1727410246472,-7524.96390063,0.000129,2]
[339258417,1727410246487,-327.633,0.000129,2]
[339258442,1727410246721,-26236.5671453,0.000129,2]
[339258459,1727410277158,150.0,0.0001389,30]
[339258460,1727410286932,11512.0,0.000103,5]
[339258461,1727410370443,244.39,0.00010063,2]
[339258462,1727410915739,1050.0,0.00011,2]
[339258463,1727410939874,232.17,9.965e-05,2]
[339258464,1727411173014,150.0,0.0001389,30]
[339258492,1727411425615,155.56,0.00010959,2]
[339258511,1727411432052,-160.88275236,0.00011164,2]
[339258512,1727411432062,-250.0,0.00011737,2]
[339258513,1727411432072,-183.64,0.00011769,2]
[339258514,1727411432083,-1000.0,0.00011786,2]
[339258515,1727411432094,-239.3,0.00011864,2]
[339258516,1727411432104,-166.22,0.00011972,2]
[339258517,1727411432114,-1355.79163576,0.00012,2]
[339258518,1727411432124,-4741.47968697,0.00012083,2]
[339258519,1727411432134,-799.0,0.00012117,2]
[339258520,1727411432146,-232.17,0.00012229,2]
[339258521,1727411432157,-300.0,0.00012389,2]
[339258522,1727411432168,-150.506629,0.0001239,2]
[339258523,1727411432178,-188.133288,0.0001239,2]
[339258524,1727411432189,-1765.78,0.0001239,2]
[339258525,1727411432200,-165.43,0.0001239,2]
[339258526,1727411432211,-5063.31,0.0001239,2]
[339258527,1727411432220,-1519.67,0.000124,2]
[339258528,1727411432230,-295.48,0.000124,2]
[339258529,1727411432241,-2000.0,0.000125,2]
[339258530,1727411432251,-150.506629,0.00012545,2]
[339258531,1727411432260,-150.506629,0.000127,2]
[339258532,1727411432271,-19630.0338,0.000127,2]
[339258534,1727411432280,-1758.7479,0.000127,2]
[339258536,1727411432290,-161.04421964,0.000127,2]
[339258538,1727411432300,-161.04421963,0.0001275,2]
[339258540,1727411432310,-799.0,0.00012755,2]
[339258541,1727411432320,-2256.0,0.00012768,2]
[339258542,1727411432330,-1460.7213,0.000128,2]
[339258543,1727411432339,-189203.4392,0.000128,2]
[339258544,1727411432350,-1093.5968,0.000128,2]
[339258545,1727411432359,-430.6603,0.000128,2]
[339258546,1727411432370,-155.94268703,0.000128,2]
[339258547,1727411432380,-161.04421963,0.000128,2]
[339258548,1727411432389,-152.97413196,0.000128,2]
[339258549,1727411432398,-152.97413196,0.000128,2]
[339258550,1727411432408,-152.97413196,0.000128,2]
[339258551,1727411432418,-152.97413196,0.000128,2]
[339258552,1727411432428,-152.97413196,0.000128,2]
[339258553,1727411432438,-153.47,0.000128,2]
[339258554,1727411432448,-197.75237626,0.000128,2]
[339258555,1727411432458,-197.75237626,0.000128,2]
[339258556,1727411432467,-197.75237626,0.000128,2]
[339258557,1727411432477,-197.75237626,0.000128,2]
[339258558,1727411432486,-197.75237626,0.000128,2]
[339258559,1727411432496,-197.75237626,0.000128,2]
[339258560,1727411432505,-197.75237626,0.000128,2]
[339258561,1727411432515,-197.75237626,0.000128,2]
[339258562,1727411432524,-197.75237626,0.000128,2]
[339258563,1727411432534,-197.75237626,0.000128,2]
[339258564,1727411432543,-197.75237626,0.000128,2]
[339258565,1727411432552,-197.75237626,0.000128,2]
[339258566,1727411432562,-197.75237626,0.000128,2]
[339258567,1727411432575,-197.75237626,0.000128,2]
[339258568,1727411432586,-197.75237626,0.000128,2]
[339258569,1727411432597,-197.75237626,0.000128,2]
[339258570,1727411432609,-197.75237626,0.000128,2]
[339258571,1727411432621,-197.75237626,0.000128,2]
[339258572,1727411432632,-197.75237626,0.000128,2]
[339258573,1727411432643,-198.25,0.000128,2]
[339258574,1727411432653,-201.94221174,0.000128,2]
[339258575,1727411432664,-201.94221174,0.000128,2]
[339258576,1727411432674,-201.94221174,0.000128,2]
[339258577,1727411432684,-201.94221174,0.000128,2]
[339258578,1727411432697,-201.94221174,0.000128,2]
[339258579,1727411432708,-201.94221174,0.000128,2]
[339258580,1727411432719,-201.94221174,0.000128,2]
[339258581,1727411432730,-201.94221174,0.000128,2]
[339258582,1727411432741,-201.94221174,0.000128,2]
[339258583,1727411432752,-201.94221174,0.000128,2]
[339258584,1727411432764,-201.94221174,0.000128,2]
[339258585,1727411432775,-201.94221174,0.000128,2]
[339258586,1727411432786,-201.94221174,0.000128,2]
[339258587,1727411432797,-201.94221174,0.000128,2]
[339258588,1727411432808,-201.94221174,0.000128,2]
[339258589,1727411432819,-201.94221174,0.000128,2]
[339258590,1727411432831,-201.94221174,0.000128,2]
[339258591,1727411432842,-201.94221174,0.000128,2]
[339258592,1727411432854,-201.94221174,0.000128,2]
[339258593,1727411432865,-202.44,0.000128,2]
[339258594,1727411432877,-2030.31136093,0.000128,2]
[339258595,1727411432888,-150.506629,0.00012855,2]
[339258596,1727411432898,-157.85,0.00012855,2]
[339258597,1727411432910,-344.945,0.0001287,2]
[339258598,1727411432921,-164.95,0.00012887,2]
[339258599,1727411432931,-500.0,0.00012896,2]
[339258600,1727411432941,-199.30226172,0.00012896,2]
[339258601,1727411432952,-500.0,0.00012896,2]
[339258602,1727411432964,-553.07506305,0.00012896,2]
[339258603,1727411432975,-39989.98591988,0.00012897,3]
[339258604,1727411432989,-420.816,0.00012897,3]
[339258605,1727411433006,-3410.13862831,0.00012897,3]
[339258609,1727411438082,-1733.0050869,0.00012897,3]
[339258610,1727411438243,-1001.66079781,0.00012897,3]
[339258611,1727411438256,-647.57048825,0.00012897,3]
[339258612,1727411438268,-9655.913155,0.00012897,3]
[339258613,1727411438280,-3920.87569739,0.00012897,3]
[339258614,1727411438300,-367864.05459077,0.00012897,3]
[339258615,1727411438520,-608286.13391385,0.00012897,3]
[339258616,1727411438530,-500.0,0.00012899,2]
[339258617,1727411438540,-500.0,0.00012899,2]
[339258618,1727411438550,-500.0,0.00012899,2]
[339258619,1727411438561,-500.0,0.00012899,2]
[339258620,1727411438571,-500.0,0.00012899,2]
[339258621,1727411438581,-500.0,0.00012899,2]
[339258622,1727411438591,-500.0,0.00012899,2]
[339258623,1727411438601,-500.0,0.00012899,2]
[339258624,1727411438610,-500.0,0.00012899,2]
[339258625,1727411438620,-500.0,0.00012899,2]
[339258626,1727411438631,-500.0,0.00012899,2]
[339258627,1727411438641,-500.0,0.00012899,2]
[339258628,1727411438651,-500.0,0.00012899,2]
[339258629,1727411438662,-500.0,0.00012899,2]
[339258630,1727411438672,-500.0,0.00012899,2]
[339258631,1727411438683,-500.0,0.00012899,2]
[339258632,1727411438696,-500.0,0.00012899,2]
[339258633,1727411438707,-500.0,0.00012899,2]
[339258634,1727411438718,-500.0,0.00012899,2]
[339258635,1727411438728,-200.27354436,0.00012899,2]
[339258637,1727411438739,-247857.46248356,0.000129,2]
[339258638,1727411438750,-150.491,0.000129,2]
[339258639,1727411438761,-960540.4733571,0.000129,2]
[339258643,1727411439984,-5314.57231595,0.000129,2]
[339258644,1727411439997,-1076.0,0.000129,2]
[339258645,1727411440041,-1886.04131738,0.000129,2]
[339258646,1727411440099,-112301.90411632,0.000129,2]
[339258866,1727411443008,-317.58278286,0.000129,2]
[339258867,1727411443023,-295.2277472,0.000129,2]
[339258868,1727411443045,-413.236763,0.000129,2]
[339258869,1727411443170,-8500.0,0.000129,2]
[339258870,1727411443184,-7624.76250518,0.000129,2]
[339258871,1727411443196,-8546.32462848,0.000129,2]
[339258872,1727411443209,-29778.88781335,0.000129,2]
[339258873,1727411443284,-10816.61358908,0.000129,2]
[339258874,1727411443298,-46414.17522244,0.000129,2]
[339258875,1727411443311,-905.09318307,0.000129,2]
[339258876,1727411443324,-3920.91226596,0.000129,2]
[339258877,1727411443336,-2839.64033584,0.000129,2]
[339258891,1727411445938,-9000.0,0.000129,2]
[339258892,1727411446049,-4266.45789675,0.000129,2]
[339258893,1727411446063,-1692.13433811,0.000129,2]
[339258894,1727411446107,-933.17494973,0.000129,2]
[339258895,1727411446120,-27216.01884315,0.000129,2]
[339258896,1727411446170,-615.2751,0.000129,2]
[339258897,1727411446183,-7207.94302208,0.000129,2]
[339258898,1727411446196,-7959.59999997,0.000129,2]
[339258899,1727411446208,-3598.7487,0.000129,2]
[339258900,1727411446282,-637.7367872,0.000129,2]
[339258902,1727411527263,500.0,9.965e-05,2]
[339258903,1727411527577,570.0,9.965e-05,2]
[339258904,1727411539112,200.0,9.965e-05,2]
[339258905,1727411539624,200.0,9.965e-05,2]
[339258906,1727411540526,200.0,9.965e-05,2]
[339258907,1727411540861,200.0,9.965e-05,2]
[339258908,1727411541200,253.0,9.965e-05,2]
[339258909,1727411577826,223.04,0.0001006,2]
[339258910,1727411770133,-500.81620895,0.00011164,2]
[339258911,1727411770156,-6744.42,0.00011952,2]
[339258912,1727411770181,-223.23,0.0001197,2]
[339258913,1727411770211,-1043.53,0.0001197,2]
[339258914,1727411770232,-887.62,0.00012096,2]
[339258915,1727411770254,-1705.52,0.00012115,2]
[339258916,1727411770275,-274.93,0.00012176,2]
[339258917,1727411770298,-223.04,0.00012324,2]
[339258918,1727411770320,-319.00996,0.0001239,2]
[339258919,1727411770343,-198.740163,0.0001239,2]
[339258920,1727411770366,-319.00996,0.00012545,2]
[339258921,1727411770388,-198.740163,0.00012545,2]
[339258922,1727411770410,-319.00996,0.000127,2]
[339258923,1727411770432,-198.740163,0.000127,2]
[339258924,1727411770454,-20719.5856,0.000127,2]
[339258925,1727411770475,-1000.0,0.000127,2]
[339258926,1727411770497,-242.97814534,0.00012772,2]
[339258927,1727411770520,-15549.92363667,0.000128,2]
[339258928,1727411770541,-170.47842334,0.000128,2]
[339258929,1727411770563,-198.59310146,0.000128,2]
[339258930,1727411770584,-319.00996,0.00012855,2]
[339258931,1727411770607,-198.740163,0.00012855,2]
[339258932,1727411770629,-500.84141802,0.00012873,2]
[339258933,1727411770650,-500.0,0.00012873,2]
[339258934,1727411770673,-500.0,0.00012873,2]
[339258935,1727411770699,-407.62097833,0.00012899,2]
[339258936,1727411770724,-172.5638959,0.00012899,2]
[339258937,1727411770749,-9560.30809999,0.000129,2]
[339258938,1727411778447,-50000.0,0.000129,2]
[339258939,1727411778944,-50000.0,0.000129,2]
[339258940,1727411779530,-50000.0,0.000129,2]
[339258941,1727411780614,-14291.82882766,0.000129,2]
[339258942,1727411780640,-35708.17117234,0.000129,2]
[339258943,1727411781888,-50000.0,0.000129,2]
[339258944,1727411783965,-11385.77492615,0.000129,2]
[339258945,1727411783990,-1500.0,0.000129,2]
[339258946,1727411784018,-37114.22507385,0.000129,2]
[339258956,1727412064850,180.22,9.564e-05,2]
[339258957,1727412090154,207.23,0.00010959,2]
[339258958,1727412094623,200.73,0.00010037,2]
[339258960,1727412198234,500.0,9.956e-05,2]
[339258961,1727412198598,500.0,9.957e-05,2]
[339258962,1727412198943,500.0,9.957e-05,2]
[339258963,1727412201257,200.0,0.00010959,2]
[339258964,1727412201617,200.0,0.00010959,2]
[339258974,1727412554205,3522.0,0.00015,30]
[339258978,1727412622826,190.69,9.766e-05,2]
[339258980,1727412632163,-502.23735702,0.00011164,2]
[339258981,1727412632173,-39.85221032,0.00011505,2]
[339258992,1727412632577,-0.12131701,0.00011505,2]
[339258995,1727412632594,-731.21407502,0.00011505,2]
[339258996,1727412632620,-455.36754055,0.00011505,2]
[339258997,1727412632632,-1076.93248545,0.00011605,2]
[339258998,1727412632644,-764.1593386,0.00011605,2]
[339259002,1727412638325,-11.32817595,0.00011605,2]
[339259003,1727412638337,-293.25,0.00011611,2]
[339259004,1727412638348,-250.0,0.00011665,2]
[339259005,1727412638359,-410.39,0.0001171,2]
[339259006,1727412638370,-500.0,0.00011751,2]
[339259007,1727412638382,-1848.62,0.00011751,2]
[339259008,1727412638392,-156.41,0.00011776,2]
[339259009,1727412638403,-1113.38,0.00011784,2]
[339259010,1727412638414,-200.0,0.00011825,2]
[339259011,1727412638425,-250.0,0.00011865,2]
[339259012,1727412638435,-166.22,0.00011903,2]
[339259013,1727412638449,-170.41,0.00011945,2]
[339259014,1727412638460,-200.0,0.00012012,2]
[339259015,1727412638471,-190.69,0.0001203,2]
[339259016,1727412638482,-933.72,0.00012141,2]
[339259017,1727412638493,-301.14,0.00012278,2]
[339259018,1727412638506,-860.75,0.00012278,2]
[339259019,1727412638518,-300.39,0.00012278,2]
[339259020,1727412638531,-719.73,0.00012278,2]
[339259021,1727412638543,-151.21,0.00012278,2]
[339259022,1727412638554,-301.34,0.00012278,2]
[339259023,1727412638565,-150.0,0.00012699,2]
[339259024,1727412638576,-861.02182405,0.000127,2]
[339259025,1727412638639,-491.77976376,0.000127,2]
[339259026,1727412638652,-955.27057878,0.000127,2]
[339259027,1727412638703,-1531.61123109,0.000127,2]
[339259028,1727412638715,-1003.99397609,0.000127,2]
[339259153,1727412640201,-264.37412651,0.000127,2]
[339259160,1727412640258,-327.47,0.000127,2]
[339259162,1727412640271,-1024.83289972,0.000127,2]
[339259164,1727412640282,-154.405266,0.000127,2]
[339259271,1727412643453,-6373.12928258,0.000127,2]
[339259272,1727412643510,-73631.30438244,0.000127,2]
[339259273,1727412643523,-4958.03585894,0.000127,2]
[339259299,1727412646166,-26750.99999943,0.000127,2]
[339259301,1727412646178,-2049.20000046,0.000127,2]
[339259303,1727412646190,-376.87925389,0.000127,2]
[339259308,1727412646220,-9242.45337018,0.000127,2]
[339259317,1727412646331,-48763.3887041,0.000127,2]
[339259318,1727412646342,-16739.17611555,0.000127,2]
[339259319,1727412646387,-44075.2734451,0.000127,2]
[339259320,1727412646399,-12011.81247681,0.000127,2]
[339259322,1727412680581,150.0,0.0001389,30]
[339259323,1727412719234,1050.0,0.00011,2]
[339259324,1727413005539,-700.64915277,0.00015974,120]
[339259325,1727413005565,-808.45246778,0.00015974,120]
[339259326,1727413156843,188.0,9.927e-05,2]
[339259327,1727413197682,286.69,9.589e-05,2]
[339259328,1727413240616,150.0,0.0001389,30]
[339259329,1727413423108,1030.836689,0.00015,30]
[339259330,1727413426465,500.0,0.000157,120]
[339259331,1727413442976,465.0,0.000157,120]
[339259332,1727413443002,661.19281146,0.000157,120]
[339259333,1727413481972,263.53,0.00010959,2]
[339259367,1727413784204,195.81,9.982e-05,2]
[339259371,1727413801270,238.49,9.589e-05,2]
[339259379,1727413832287,-640.0,0.000112,2]
[339259380,1727413832298,-710.57298601,0.00011745,2]
[339259381,1727413832308,-710.57298601,0.00011796,2]
[339259382,1727413832319,-1000.0,0.00011816,2]
[339259383,1727413832329,-178.58,0.00011845,2]
[339259384,1727413832339,-250.0,0.00011878,2]
[339259385,1727413832350,-293.25,0.00011896,2]
[339259386,1727413832361,-191.44,0.00011968,2]
[339259387,1727413832372,-195.81,0.00012246,2]
[339259388,1727413832383,-300.0,0.00012389,2]
[339259389,1727413832394,-178.318309,0.0001239,2]